fUST/lending_fUST_20250608
["ID","MTS","AMOUNT","RATE_DAILY","PERIOD"]
[365011487,1749396644241,-440.0,0.00019452,2]
[365011488,1749396644251,-440.0,0.00019452,2]
[365011489,1749396644260,-440.0,0.00019452,2]
[365011490,1749396644270,-440.0,0.00019452,2]
[365011491,1749396644280,-440.0,0.00019452,2]
[365011492,1749396644289,-440.0,0.00019452,2]
[365011493,1749396644299,-440.0,0.00019452,2]
[365011494,1749396644309,-694.04,0.00019452,2]
[365011495,1749396644318,-440.0,0.00019452,2]
[365011496,1749396644329,-440.0,0.00019452,2]
[365011497,1749396644338,-440.0,0.00019452,2]
[365011498,1749396644348,-440.0,0.00019452,2]
[365011499,1749396644358,-420.0,0.00019452,2]
[365011500,1749396644368,-976.5,0.00019452,2]
[365011501,1749396644378,-818.84,0.00019452,2]
[365011502,1749396644388,-440.0,0.00019452,2]
[365011503,1749396644398,-440.0,0.00019452,2]
[365011504,1749396644407,-440.0,0.00019452,2]
[365011505,1749396644417,-440.0,0.00019452,2]
[365011506,1749396644427,-440.0,0.00019452,2]
[365011507,1749396644437,-440.0,0.00019452,2]
[365011508,1749396644447,-370.0,0.00019452,2]
[365011509,1749396644457,-440.0,0.00019452,2]
[365011510,1749396644467,-440.0,0.00019452,2]
[365011511,1749396644477,-440.0,0.00019452,2]
[365011512,1749396644487,-440.0,0.00019452,2]
[365011513,1749396644497,-440.0,0.00019452,2]
[365011514,1749396644506,-473.14,0.00019452,2]
[365011515,1749396644516,-440.0,0.00019452,2]
[365011516,1749396644527,-440.0,0.00019452,2]
[365011517,1749396644536,-440.0,0.00019452,2]
[365011518,1749396644546,-440.0,0.00019452,2]
[365011519,1749396644556,-440.0,0.00019452,2]
[365011520,1749396644566,-420.0,0.00019452,2]
[365011521,1749396644581,-440.0,0.00019452,2]
[365011522,1749396644590,-1002.77251302,0.000195,2]
[365011523,1749396644600,-954.0198789,0.00019601,2]
[365011524,1749396644610,-500.0,0.00019623,2]
[365011525,1749396644621,-500.0,0.00019623,2]
[365011526,1749396644630,-358.907453,0.00019725,2]
[365011527,1749396644641,-440.0,0.00019726,2]
[365011528,1749396644652,-410.0,0.00019726,2]
[365011529,1749396644662,-192.97641232,0.00019726,2]
[365011530,1749396644672,-440.0,0.00019726,2]
[365011531,1749396644682,-440.0,0.00019726,2]
[365011532,1749396644692,-440.0,0.00019726,2]
[365011533,1749396644702,-390.0,0.00019726,2]
[365011534,1749396644712,-440.0,0.00019726,2]
[365011535,1749396644723,-440.0,0.00019726,2]
[365011536,1749396644745,-440.0,0.00019726,2]
[365011537,1749396644756,-361.05730704,0.00019726,2]
[365011538,1749396644766,-440.0,0.00019726,2]
[365011539,1749396644777,-440.0,0.00019726,2]
[365011540,1749396644788,-440.0,0.00019726,2]
[365011541,1749396644798,-440.0,0.00019726,2]
[365011542,1749396644808,-440.0,0.00019726,2]
[365011543,1749396644818,-440.0,0.00019726,2]
[365011544,1749396644828,-430.0,0.00019726,2]
[365011545,1749396644838,-440.0,0.00019726,2]
[365011546,1749396644848,-440.0,0.00019726,2]
[365011547,1749396644858,-440.0,0.00019726,2]
[365011548,1749396644868,-440.0,0.00019726,2]
[365011549,1749396644879,-440.0,0.00019726,2]
[365011550,1749396644888,-379.11841768,0.00019726,2]
[365011551,1749396644899,-420.0,0.00019726,2]
[365011552,1749396644909,-440.0,0.00019726,2]
[365011553,1749396644919,-440.0,0.00019726,2]
[365011554,1749396644929,-589.9338273,0.00019726,2]
[365011555,1749396644940,-440.0,0.00019726,2]
[365011556,1749396644951,-440.0,0.00019726,2]
[365011557,1749396644962,-420.18082664,0.00019726,2]
[365011558,1749396644972,-440.0,0.00019726,2]
[365011559,1749396644983,-440.0,0.00019726,2]
[365011560,1749396644993,-440.0,0.00019726,2]
[365011561,1749396645004,-410.0,0.00019726,2]
[365011562,1749396645014,-440.0,0.00019726,2]
[365011563,1749396645024,-440.0,0.00019726,2]
[365011564,1749396645035,-440.0,0.00019726,2]
[365011565,1749396645046,-440.0,0.00019726,2]
[365011566,1749396645056,-440.0,0.00019726,2]
[365011567,1749396645067,-440.0,0.00019726,2]
[365011568,1749396645077,-440.0,0.00019726,2]
[365011569,1749396645087,-440.0,0.00019726,2]
[365011570,1749396645098,-440.0,0.00019726,2]
[365011571,1749396645108,-440.0,0.00019726,2]
[365011572,1749396645119,-260.0,0.00019726,2]
[365011573,1749396645129,-440.0,0.00019726,2]
[365011574,1749396645140,-440.0,0.00019726,2]
[365011575,1749396645150,-440.0,0.00019726,2]
[365011576,1749396645160,-440.0,0.00019726,2]
[365011577,1749396645171,-440.0,0.00019726,2]
[365011578,1749396645181,-440.0,0.00019726,2]
[365011579,1749396645191,-216.27922572,0.00019726,2]
[365011580,1749396645202,-410.0,0.00019726,2]
[365011581,1749396645212,-352.86135184,0.00019726,2]
[365011582,1749396645222,-440.0,0.00019726,2]
[365011583,1749396645232,-713.93,0.00019726,2]
[365011584,1749396645242,-440.0,0.00019726,2]
[365011585,1749396645253,-440.0,0.00019726,2]
[365011586,1749396645263,-440.0,0.00019726,2]
[365011587,1749396645273,-440.0,0.00019726,2]
[365011588,1749396645284,-440.0,0.00019726,2]
[365011589,1749396645294,-310.94730551,0.00019726,2]
[365011590,1749396645304,-440.0,0.00019726,2]
[365011591,1749396645314,-577.92,0.00019726,2]
[365011592,1749396645324,-440.0,0.00019726,2]
[365011593,1749396645335,-440.0,0.00019726,2]
[365011594,1749396645351,-440.0,0.00019726,2]
[365011595,1749396645362,-440.0,0.00019726,2]
[365011596,1749396645372,-440.0,0.00019726,2]
[365011597,1749396645382,-440.0,0.00019726,2]
[365011598,1749396645392,-463.59725457,0.00019726,2]
[365011599,1749396645403,-410.0,0.00019726,2]
[365011600,1749396645413,-440.0,0.00019726,2]
[365011601,1749396645424,-440.0,0.00019726,2]
[365011602,1749396645434,-585.47,0.00019726,2]
[365011603,1749396645444,-440.0,0.00019726,2]
[365011604,1749396645456,-410.0,0.00019726,2]
[365011605,1749396645466,-440.0,0.00019726,2]
[365011606,1749396645477,-440.0,0.00019726,2]
[365011607,1749396645487,-440.0,0.00019726,2]
[365011608,1749396645498,-440.0,0.00019726,2]
[365011609,1749396645509,-440.0,0.00019726,2]
[365011610,1749396645519,-440.0,0.00019726,2]
[365011611,1749396645529,-440.0,0.00019726,2]
[365011612,1749396645539,-587.98005441,0.00019726,2]
[365011613,1749396645549,-410.0,0.00019726,2]
[365011614,1749396645559,-440.0,0.00019726,2]
[365011615,1749396645570,-748.72,0.00019726,2]
[365011616,1749396645582,-440.0,0.00019726,2]
[365011617,1749396645592,-674.18,0.00019726,2]
[365011618,1749396645601,-430.0,0.00019726,2]
[365011619,1749396645611,-271.45555516,0.00019726,2]
[365011620,1749396645623,-440.0,0.00019726,2]
[365011621,1749396645634,-440.0,0.00019726,2]
[365011622,1749396645644,-440.0,0.00019726,2]
[365011623,1749396645656,-430.0,0.00019726,2]
[365011624,1749396645666,-440.0,0.00019726,2]
[365011625,1749396645676,-440.0,0.00019726,2]
[365011626,1749396645686,-694.04,0.00019726,2]
[365011627,1749396645697,-440.0,0.00019726,2]
[365011628,1749396645707,-440.0,0.00019726,2]
[365011629,1749396645718,-440.0,0.00019726,2]
[365011630,1749396645729,-440.0,0.00019726,2]
[365011631,1749396645740,-976.5,0.00019726,2]
[365011632,1749396645749,-818.84,0.00019726,2]
[365011633,1749396645759,-440.0,0.00019726,2]
[365011634,1749396645770,-440.0,0.00019726,2]
[365011635,1749396645779,-440.0,0.00019726,2]
[365011636,1749396645790,-440.0,0.00019726,2]
[365011637,1749396645799,-440.0,0.00019726,2]
[365011638,1749396645809,-440.0,0.00019726,2]
[365011639,1749396645819,-440.0,0.00019726,2]
[365011640,1749396645829,-440.0,0.00019726,2]
[365011641,1749396645840,-440.0,0.00019726,2]
[365011642,1749396645850,-440.0,0.00019726,2]
[365011643,1749396645860,-440.0,0.00019726,2]
[365011644,1749396645871,-473.14,0.00019726,2]
[365011645,1749396645881,-440.0,0.00019726,2]
[365011646,1749396645892,-440.0,0.00019726,2]
[365011647,1749396645902,-440.0,0.00019726,2]
[365011648,1749396645913,-440.0,0.00019726,2]
[365011650,1749396645925,-500.0,0.00019808,2]
[365011651,1749396645936,-281.16332978,0.00019808,2]
[365011652,1749396645946,-500.0,0.00019808,2]
[365011653,1749396645957,-500.0,0.00019808,2]
[365011654,1749396645969,-500.0,0.00019808,2]
[365011655,1749396645980,-500.0,0.00019808,2]
[365011656,1749396645990,-151.0,0.00019808,2]
[365011657,1749396646000,-500.0,0.00019808,2]
[365011658,1749396646011,-500.0,0.00019808,2]
[365011659,1749396646022,-500.0,0.00019808,2]
[365011660,1749396646032,-500.0,0.00019835,2]
[365011661,1749396646042,-500.83773021,0.00019835,2]
[365011662,1749396646051,-500.0,0.00019835,2]
[365011663,1749396646061,-151.0,0.00019835,2]
[365011664,1749396646071,-500.0,0.00019835,2]
[365011665,1749396646082,-500.0,0.00019835,2]
[365011666,1749396646092,-500.0,0.00019835,2]
[365011667,1749396646102,-500.0,0.00019863,2]
[365011668,1749396646113,-500.0,0.00019863,2]
[365011669,1749396646123,-198.0,0.00019863,2]
[365011671,1749396646134,-500.0,0.00019863,2]
[365011672,1749396646144,-500.0,0.00019863,2]
[365011673,1749396646154,-500.0,0.00019863,2]
[365011674,1749396646164,-854.66,0.00019886,2]
[365011675,1749396646174,-500.0,0.0001989,2]
[365011676,1749396646184,-500.0,0.0001989,2]
[365011677,1749396646194,-537.31774589,0.0001989,2]
[365011678,1749396646205,-500.0,0.0001989,2]
[365011679,1749396646215,-500.0,0.0001989,2]
[365011680,1749396646225,-500.0,0.00019918,2]
[365011682,1749396646235,-500.0,0.00019918,2]
[365011683,1749396646245,-500.0,0.00019918,2]
[365011684,1749396646322,-500.0,0.00019918,2]
[365011685,1749396646332,-500.0,0.00019945,2]
[365011686,1749396646342,-503.15818704,0.00019945,2]
[365011687,1749396646352,-500.0,0.00019972,2]
[365011688,1749396646361,-337.79749337,0.0002,2]
[365011689,1749396646371,-380.0,0.0002,2]
[365011690,1749396646380,-440.0,0.0002,2]
[365011691,1749396646390,-440.0,0.0002,2]
[365011692,1749396646399,-440.0,0.0002,2]
[365011694,1749396646409,-413.5421688,0.0002,2]
[365011695,1749396646419,-440.0,0.0002,2]
[365011697,1749396646429,-440.0,0.0002,2]
[365011698,1749396646438,-370.0,0.0002,2]
[365011699,1749396646449,-440.0,0.0002,2]
[365011700,1749396646459,-350.0,0.0002,2]
[365011701,1749396646468,-440.0,0.0002,2]
[365011702,1749396646478,-340.0,0.0002,2]
[365011703,1749396646488,-240.00141876,0.0002,2]
[365011704,1749396646497,-440.0,0.0002,2]
[365011705,1749396646507,-440.0,0.0002,2]
[365011706,1749396646516,-440.0,0.0002,2]
[365011707,1749396646525,-440.0,0.0002,2]
[365011708,1749396646535,-440.0,0.0002,2]
[365011710,1749396646545,-573.78,0.0002,2]
[365011711,1749396646555,-713.93,0.0002,2]
[365011712,1749396646565,-440.0,0.0002,2]
[365011713,1749396646577,-440.0,0.0002,2]
[365011714,1749396646587,-430.0,0.0002,2]
[365011715,1749396646597,-577.92,0.0002,2]
[365011716,1749396646606,-440.0,0.0002,2]
[365011717,1749396646617,-440.0,0.0002,2]
[365011718,1749396646626,-440.0,0.0002,2]
[365011719,1749396646635,-410.0,0.0002,2]
[365011720,1749396646645,-274.05251106,0.0002,2]
[365011721,1749396646656,-440.0,0.0002,2]
[365011722,1749396646666,-206.25,0.0002,2]
[365011723,1749396646675,-440.0,0.0002,2]
[365011724,1749396646685,-748.72,0.0002,2]
[365011725,1749396646694,-440.0,0.0002,2]
[365011726,1749396646704,-674.18,0.0002,2]
[365011728,1749396646716,-440.0,0.0002,2]
[365011730,1749396646726,-440.70948469,0.0002,2]
[365011732,1749396646735,-694.04,0.0002,2]
[365011734,1749396646744,-440.0,0.0002,2]
[365011736,1749396646753,-440.0,0.0002,2]
[365011737,1749396646762,-440.0,0.0002,2]
[365011738,1749396646772,-380.0,0.0002,2]
[365011739,1749396646781,-976.5,0.0002,2]
[365011740,1749396646790,-818.84,0.0002,2]
[365011741,1749396646800,-350.0,0.0002,2]
[365011742,1749396646809,-246.25047442,0.0002,2]
[365011743,1749396646818,-440.0,0.0002,2]
[365011744,1749396646828,-430.0,0.0002,2]
[365011745,1749396646838,-440.0,0.0002,2]
[365011746,1749396646847,-440.0,0.0002,2]
[365011747,1749396646868,-420.0,0.0002,2]
[365011748,1749396646879,-473.14,0.0002,2]
[365011749,1749396646889,-440.0,0.0002,2]
[365011750,1749396646898,-440.0,0.0002,2]
[365011751,1749396646908,-440.0,0.0002,2]
[365011752,1749396646918,-207.75162133,0.00020032,2]
[365011753,1749396646927,-213.05153702,0.00020064,2]
[365011754,1749396646937,-842.5625,0.00020065,2]
[365011755,1749396646946,-160.0,0.00020065,2]
[365011756,1749396646957,-834.50537533,0.00020065,2]
[365011757,1749396646966,-160.0,0.00020065,2]
[365011758,1749396646976,-229.60437222,0.00020065,2]
[365011759,1749396646986,-423.98131849,0.00020065,2]
[365011760,1749396646995,-160.0,0.00020065,2]
[365011761,1749396647005,-1000.0,0.00020171,2]
[365011762,1749396647014,-234.58344211,0.00020171,2]
[365011763,1749396647024,-745.28372435,0.00020229,2]
[365011764,1749396647033,-440.0,0.00020273,2]
[365011765,1749396647043,-440.0,0.00020273,2]
[365011766,1749396647053,-440.0,0.00020273,2]
[365011767,1749396647062,-550.1771151,0.00020273,2]
[365011768,1749396647072,-440.0,0.00020273,2]
[365011769,1749396647081,-440.0,0.00020273,2]
[365011770,1749396647091,-571.48,0.00020273,2]
[365011771,1749396647101,-440.0,0.00020273,2]
[365011772,1749396647111,-440.0,0.00020273,2]
[365011773,1749396647121,-440.0,0.00020273,2]
[365011774,1749396647130,-713.93,0.00020273,2]
[365011775,1749396647140,-230.30721378,0.00020273,2]
[365011776,1749396647150,-577.92,0.00020273,2]
[365011777,1749396647159,-440.0,0.00020273,2]
[365011778,1749396647170,-440.0,0.00020273,2]
[365011779,1749396647179,-359.8,0.00020273,2]
[365011780,1749396647189,-440.0,0.00020273,2]
[365011781,1749396647199,-440.0,0.00020273,2]
[365011782,1749396647208,-748.72,0.00020273,2]
[365011783,1749396647218,-674.18,0.00020273,2]
[365011784,1749396647228,-440.0,0.00020273,2]
[365011785,1749396647237,-694.04,0.00020273,2]
[365011786,1749396647248,-440.0,0.00020273,2]
[365011787,1749396647257,-235.32988689,0.00020273,2]
[365011788,1749396647267,-976.5,0.00020273,2]
[365011789,1749396647277,-818.84,0.00020273,2]
[365011790,1749396647287,-440.0,0.00020273,2]
[365011791,1749396647298,-440.0,0.00020273,2]
[365011792,1749396647309,-473.14,0.00020273,2]
[365011793,1749396647318,-440.0,0.00020273,2]
[365011794,1749396647328,-440.0,0.00020273,2]
[365011795,1749396647338,-440.0,0.00020273,2]
[365011796,1749396647350,-163.55493632,0.00020424,2]
[365011797,1749396647360,-339.84291794,0.00020547,2]
[365011798,1749396647371,-380.0,0.00020547,2]
[365011799,1749396647381,-493.97937949,0.00020547,2]
[365011800,1749396647392,-440.0,0.00020547,2]
[365011801,1749396647403,-440.0,0.00020547,2]
[365011802,1749396647414,-389.47904283,0.00020547,2]
[365011803,1749396647423,-440.0,0.00020547,2]
[365011804,1749396647433,-440.0,0.00020547,2]
[365011805,1749396647442,-440.0,0.00020547,2]
[365011806,1749396647452,-713.93,0.00020547,2]
[365011807,1749396647462,-577.92,0.00020547,2]
[365011808,1749396647471,-440.0,0.00020547,2]
[365011809,1749396647486,-440.0,0.00020547,2]
[365011810,1749396647496,-440.0,0.00020547,2]
[365011811,1749396647506,-440.0,0.00020547,2]
[365011812,1749396647516,-748.72,0.00020547,2]
[365011813,1749396647525,-674.18,0.00020547,2]
[365011814,1749396647535,-153.46,0.00020547,2]
[365011815,1749396647544,-694.04,0.00020547,2]
[365011816,1749396647554,-440.0,0.00020547,2]
[365011817,1749396647564,-976.5,0.00020547,2]
[365011818,1749396647578,-818.84,0.00020547,2]
[365011819,1749396647588,-440.0,0.00020547,2]
[365011820,1749396647599,-473.14,0.00020547,2]
[365011821,1749396647609,-440.0,0.00020547,2]
[365011822,1749396647622,-440.0,0.00020547,2]
[365011823,1749396647635,-492.66225048,0.00020547,2]
[365011824,1749396647645,-817.81,0.000206,2]
[365011825,1749396647657,-420.0,0.00020709,2]
[365011826,1749396647667,-800.0,0.00020821,2]
[365011827,1749396647677,-380.0,0.00020821,2]
[365011828,1749396647688,-440.0,0.00020821,2]
[365011829,1749396647700,-440.0,0.00020821,2]
[365011830,1749396647711,-440.0,0.00020821,2]
[365011831,1749396647722,-713.93,0.00020821,2]
[365011832,1749396647732,-577.92,0.00020821,2]
[365011833,1749396647743,-440.0,0.00020821,2]
[365011834,1749396647753,-440.0,0.00020821,2]
[365011835,1749396647764,-440.0,0.00020821,2]
[365011836,1749396647775,-440.0,0.00020821,2]
[365011837,1749396647786,-748.72,0.00020821,2]
[365011838,1749396647797,-674.18,0.00020821,2]
[365011839,1749396647807,-694.04,0.00020821,2]
[365011840,1749396647818,-440.0,0.00020821,2]
[365011841,1749396647829,-976.5,0.00020821,2]
[365011842,1749396647839,-818.84,0.00020821,2]
[365011843,1749396647850,-440.0,0.00020821,2]
[365011844,1749396647860,-473.14,0.00020821,2]
[365011845,1749396647870,-440.0,0.00020821,2]
[365011846,1749396647880,-440.0,0.00020821,2]
[365011847,1749396647891,-1514.19,0.000209,2]
[365011848,1749396647902,-460.84,0.00021,2]
[365011849,1749396647915,-440.0,0.00021095,2]
[365011850,1749396647926,-440.0,0.00021095,2]
[365011851,1749396647937,-440.0,0.00021095,2]
[365011852,1749396647947,-713.93,0.00021095,2]
[365011853,1749396647958,-577.92,0.00021095,2]
[365011854,1749396647968,-440.0,0.00021095,2]
[365011855,1749396647979,-440.0,0.00021095,2]
[365011856,1749396647990,-440.0,0.00021095,2]
[365011857,1749396648000,-440.0,0.00021095,2]
[365011858,1749396648010,-748.72,0.00021095,2]
[365011859,1749396648020,-674.18,0.00021095,2]
[365011860,1749396648031,-694.04,0.00021095,2]
[365011861,1749396648041,-440.0,0.00021095,2]
[365011862,1749396648051,-976.5,0.00021095,2]
[365011863,1749396648062,-818.84,0.00021095,2]
[365011864,1749396648073,-440.0,0.00021095,2]
[365011865,1749396648084,-473.14,0.00021095,2]
[365011866,1749396648095,-440.0,0.00021095,2]
[365011867,1749396648108,-440.0,0.00021095,2]
[365011868,1749396648119,-580.13,0.00021369,2]
[365011869,1749396648129,-200.21,0.00021369,2]
[365011870,1749396648139,-440.0,0.00021369,2]
[365011871,1749396648150,-713.93,0.00021369,2]
[365011872,1749396648161,-577.92,0.00021369,2]
[365011873,1749396648171,-440.0,0.00021369,2]
[365011874,1749396648182,-440.0,0.00021369,2]
[365011875,1749396648192,-440.0,0.00021369,2]
[365011876,1749396648203,-440.0,0.00021369,2]
[365011877,1749396648213,-748.72,0.00021369,2]
[365011878,1749396648223,-674.18,0.00021369,2]
[365011879,1749396648234,-694.04,0.00021369,2]
[365011880,1749396648244,-440.0,0.00021369,2]
[365011881,1749396648254,-976.5,0.00021369,2]
[365011882,1749396648264,-818.84,0.00021369,2]
[365011883,1749396648275,-440.0,0.00021369,2]
[365011884,1749396648285,-473.14,0.00021369,2]
[365011885,1749396648296,-440.0,0.00021369,2]
[365011886,1749396648306,-440.0,0.00021369,2]
[365011887,1749396648317,-745.28372435,0.0002138,2]
[365011888,1749396648327,-1139.54,0.00021416,2]
[365011889,1749396648338,-440.0,0.00021643,2]
[365011890,1749396648348,-713.93,0.00021643,2]
[365011891,1749396648359,-577.92,0.00021643,2]
[365011892,1749396648370,-440.0,0.00021643,2]
[365011893,1749396648380,-440.0,0.00021643,2]
[365011894,1749396648391,-440.0,0.00021643,2]
[365011895,1749396648401,-440.0,0.00021643,2]
[365011896,1749396648411,-748.72,0.00021643,2]
[365011897,1749396648422,-674.18,0.00021643,2]
[365011898,1749396648432,-694.04,0.00021643,2]
[365011899,1749396648442,-440.0,0.00021643,2]
[365011900,1749396648452,-976.5,0.00021643,2]
[365011901,1749396648463,-818.84,0.00021643,2]
[365011902,1749396648473,-440.0,0.00021643,2]
[365011903,1749396648484,-473.14,0.00021643,2]
[365011904,1749396648495,-440.0,0.00021643,2]
[365011905,1749396648506,-440.0,0.00021643,2]
[365011906,1749396648516,-500.0,0.00021725,2]
[365011907,1749396648527,-163.55493632,0.00021774,2]
[365011908,1749396648538,-800.0,0.00021917,2]
[365011909,1749396648549,-440.0,0.00021917,2]
[365011910,1749396648560,-713.93,0.00021917,2]
[365011911,1749396648570,-577.92,0.00021917,2]
[365011912,1749396648583,-155.18704567,0.00021917,2]
[365011913,1749396648594,-440.0,0.00021917,2]
[365011914,1749396648605,-440.0,0.00021917,2]
[365011915,1749396648617,-748.72,0.00021917,2]
[365011916,1749396648628,-674.18,0.00021917,2]
[365011917,1749396648638,-694.04,0.00021917,2]
[365011918,1749396648651,-440.0,0.00021917,2]
[365011919,1749396648663,-976.5,0.00021917,2]
[365011920,1749396648673,-818.84,0.00021917,2]
[365011921,1749396648683,-440.0,0.00021917,2]
[365011922,1749396648694,-473.14,0.00021917,2]
[365011923,1749396648706,-440.0,0.00021917,2]
[365011924,1749396648716,-440.0,0.00021917,2]
[365011925,1749396648727,-4225.12,0.00022,20]
[365011926,1749396648739,-55443.0,0.00022,7]
[365011927,1749396648749,-20823.77,0.00022,2]
[365011928,1749396648760,-80960.62933716,0.00022,2]
[365011929,1749396648770,-386.53261844,0.00022,2]
[365011930,1749396648781,-440.0,0.00022191,4]
[365011931,1749396648791,-713.93,0.00022191,4]
[365011932,1749396648802,-577.92,0.00022191,4]
[365011933,1749396648812,-440.0,0.00022191,4]
[365011934,1749396648823,-440.0,0.00022191,4]
[365011935,1749396648834,-748.72,0.00022191,4]
[365011936,1749396648844,-674.18,0.00022191,4]
[365011937,1749396648854,-694.04,0.00022191,4]
[365011938,1749396648865,-440.0,0.00022191,4]
[365011939,1749396648875,-976.5,0.00022191,4]
[365011940,1749396648886,-818.84,0.00022191,4]
[365011941,1749396648896,-440.0,0.00022191,4]
[365011942,1749396648907,-473.14,0.00022191,4]
[365011943,1749396648917,-440.0,0.00022191,4]
[365011944,1749396648928,-440.0,0.00022191,4]
[365011945,1749396648939,-500.0,0.00022233,2]
[365011946,1749396648949,-500.0,0.00022233,2]
[365011947,1749396648960,-500.0,0.00022233,2]
[365011948,1749396648970,-984.15155869,0.00022273,2]
[365011949,1749396648980,-817.81,0.000224,7]
[365011950,1749396649003,-444.47,0.00022465,4]
[365011951,1749396649014,-713.93,0.00022465,4]
[365011952,1749396649025,-577.92,0.00022465,4]
[365011953,1749396649035,-391.22989831,0.00022465,4]
[365011954,1749396649046,-440.0,0.00022465,4]
[365011955,1749396649058,-748.72,0.00022465,4]
[365011956,1749396649069,-674.18,0.00022465,4]
[365011957,1749396649081,-694.04,0.00022465,4]
[365011958,1749396649092,-303.47119795,0.00022465,4]
[365011959,1749396649104,-976.5,0.00022465,4]
[365011960,1749396649115,-818.84,0.00022465,4]
[365011961,1749396649127,-440.0,0.00022465,4]
[365011962,1749396649138,-473.14,0.00022465,4]
[365011963,1749396649149,-440.0,0.00022465,4]
[365011964,1749396649160,-440.0,0.00022465,4]
[365011965,1749396649170,-745.28372435,0.0002253,2]
[365011966,1749396649182,-587.0,0.00022573,2]
[365011967,1749396649193,-2460.56264745,0.000226,2]
[365011968,1749396649204,-100182.91143494,0.000226,7]
[365011969,1749396649215,-713.93,0.00022739,4]
[365011970,1749396649226,-577.92,0.00022739,4]
[365011971,1749396649237,-440.0,0.00022739,4]
[365011972,1749396649248,-748.72,0.00022739,4]
[365011973,1749396649258,-674.18,0.00022739,4]
[365011974,1749396649269,-694.04,0.00022739,4]
[365011975,1749396649280,-976.5,0.00022739,4]
[365011976,1749396649292,-818.84,0.00022739,4]
[365011977,1749396649302,-440.0,0.00022739,4]
[365011978,1749396649312,-473.14,0.00022739,4]
[365011979,1749396649323,-440.0,0.00022739,4]
[365011980,1749396649333,-440.0,0.00022739,4]
[365011981,1749396649344,-1514.19,0.000228,7]
[365011982,1749396649354,-153.0,0.00022856,2]
[365011983,1749396649364,-153.0,0.00022856,2]
[365011984,1749396649374,-207.4,0.00022915,2]
[365011985,1749396649385,-1424.43,0.00022945,2]
[365011986,1749396649395,-400.0,0.00023,2]
[365011987,1749396649406,-32680.89933984,0.00023,2]
[365011988,1749396649418,-2142.65736396,0.00023,30]
[365011989,1749396649428,-800.0,0.00023013,2]
[365011990,1749396649439,-713.93,0.00023013,4]
[365011991,1749396649451,-577.92,0.00023013,4]
[365011992,1749396649462,-440.0,0.00023013,4]
[365011993,1749396649473,-748.72,0.00023013,4]
[365011994,1749396649484,-674.18,0.00023013,4]
[365011995,1749396649495,-694.04,0.00023013,4]
[365011996,1749396649506,-976.5,0.00023013,4]
[365011997,1749396649517,-818.84,0.00023013,4]